Cogmind - Beta 9.6 @@@ ROGUE MODE // 2020.06.04 @ 19:04:23 Player: mecharm Result: Destroyed by G-34 Mercenary with Small Laser Performance ------------- Evolutions (0) 0 Regions Visited (1) 200 Robots Destroyed (17) 85 Value Destroyed (376) 376 Prototype IDs (0) 0 Alien Tech Used (0) 0 Bonus (0) 0 TOTAL SCORE: 661 Bonus ------- None Cogmind --------- Core Integrity 0/250 Matter 163/300 Energy 77/100 System Corruption 0% Temperature Cool (6) Movement Core (150) Ox2 Location -10/Materials Parts ------- > --- POWER (1) -------- (None) > --- PROPULSION (2) --- (None) > --- UTILITY (2) ------ Small Storage Unit Small Storage Unit > --- WEAPON (2) ------- (None) > --- INVENTORY (8) ---- Targeting Computer Core Shielding Weapon Shielding Weapon Shielding Light Armor Plating Peak State ------------ > --- POWER ------------ Light Ion Engine > --- PROPULSION ------- Aluminum Leg Aluminum Leg > --- UTILITY ---------- Small Storage Unit Small Storage Unit > --- WEAPON ----------- Assault Rifle Grenade Launcher > --- INVENTORY -------- Wheel Wheel Assault Rifle [Rating: 7] Favorites ----------- Power Light Ion Engine Engine Light Ion Engine Propulsion Aluminum Leg Leg Aluminum Leg Utility Small Storage Unit Storage Small Storage Unit Weapon Assault Rifle Energy Gun Medium Laser Ballistic Gun Assault Rifle Launcher Grenade Launcher Special Weapon Mining Laser Build | -11 -10 ------- Run | Scr Mat Slots Evolved . | . . Power . | . . Propulsion . | . . Utility . | . . Weapon . | . . Parts Attached 15 | 5 10 Power 1 | 1 . Engine 1 | 1 . Core . | . . Reactor . | . . Propulsion 4 | 2 2 Treads . | . . Leg 4 | 2 2 Wheel . | . . Hover . | . . Flight . | . . Utility 2 | . 2 Device . | . . Storage 2 | . 2 Processor . | . . Hackware . | . . Protection . | . . Artifact . | . . Weapon 8 | 2 6 Energy Gun 1 | . 1 Energy Cannon . | . . Ballistic Gun 3 | 2 1 Ballistic Cannon . | . . Launcher 2 | . 2 Special Weapon 2 | . 2 Impact Weapon . | . . Slashing Weapon . | . . Piercing Weapon . | . . Special Melee Weapon . | . . Unidentified Prototypes . | . . Parts Lost 9 | . 9 Power 1 | . 1 Propulsion 3 | . 3 Utility . | . . Weapon 5 | . 5 Highest Loss Streak 8 | . 8 Average Slot Usage (%) 91 | . 91 Engine 12 | . 12 Leg 25 | . 25 Storage 25 | . 25 Ballistic Gun 13 | . 13 Launcher 9 | . 9 Naked Turns . | . . Heaviest Build 16 | 7 16 Greatest Support 20 | 20 20 Greatest Overweight (x) 4 | . 4 Average Overweight (x) . | . . Largest Inventory Capacity 8 | 4 8 Average Capacity 6 | 4 7 Most Carried 8 | 4 8 Average Carried 5 | 2 5 Final Capacity 8 | 4 8 Final Carried 5 | 2 5 Class Distribution -------------------- 100% | Mutant Dominant Class ---------------- Mutant | -10/Materials Resources | -11 -10 ----------- Run | Scr Mat Matter Collected 433 | 292 141 Remotely . | . . Salvage Created 444 | 54 390 Parts 27 | 4 23 Haulers Intercepted . | . . Recyclers Shooed . | . . Parts Field Recycled . | . . Retrieved Matter . | . . Parts Self-Destructed . | . . Prevented . | . . Kills | -11 -10 ------- Run | Scr Mat Combat Hostiles Destroyed 11 | 1 10 Guns 2 | 1 1 AOE 9 | . 9 Classes Destroyed 5 | 2 3 Worker 3 | 1 2 Recycler 2 | . 2 Watcher 1 | . 1 Swarmer 3 | . 3 Grunt 8 | 1 7 Best Kill Streak 6 | 1 6 Combat Bots Only 4 | 1 4 Max Kills in Single Turn 3 | 1 3 Gunslinging . | . . Exploded 3 | . 3 Melee . | . . Uniques/NPCs Destroyed . | . . Combat | -11 -10 -------- Run | Scr Mat Damage Taken 1051 | 45 1006 Core 259 | . 259 Absorbed by Shields . | . . Core Remaining (%) 100 | 100 . Volleys Fired 46 | 7 39 Largest 2 | 2 2 Hottest 120 | 40 120 Shots Fired 63 | 14 49 Gun 43 | 14 29 Cannon . | . . Launcher 16 | . 16 Special 4 | . 4 Kinetic 35 | 14 21 Thermal 12 | . 12 Explosive 16 | . 16 Electromagnetic . | . . Robot Hit Streak 7 | 7 4 Robot Miss Streak 3 | 1 3 Penetration Max . | . . Secondary Targets 1 | . 1 Max Gunslinging Chain 1 | . 1 Shots Hit Robots 29 | 10 19 Core Hits 28 | 3 25 Critical Hits 1 | 1 . Critical Kills . | . . Critical Parts Destroyed 1 | 1 . Melee Attacks . | . . Impact . | . . Slashing . | . . Piercing . | . . Sneak Attacks . | . . Combat Hostiles . | . . Follow-up Attacks . | . . Damage Inflicted 1236 | 87 1149 Guns 322 | 87 235 Cannons . | . . Explosions 914 | . 914 Melee . | . . Ramming . | . . Kinetic 259 | 87 172 Thermal 63 | . 63 Explosive 914 | . 914 Electromagnetic . | . . Impact . | . . Slashing . | . . Piercing . | . . Highest Corruption . | . . Average Corruption . | . . Corruption Purged . | . . Overload Shots . | . . Overflow Damage 40 | . 40 Projectiles . | . . Explosions 40 | . 40 Melee . | . . Knockbacks . | . . Impact . | . . Kinetic . | . . Secondary . | . . Self-Inflicted Damage 93 | . 93 Shots 4 | . 4 Rammed . | . . Targets Rammed . | . . Kicked . | . . Crushed . | . . Highest Temperature 218 | . 218 Average Temperature 78 | . 78 Received Heat Transfer 456 | 24 432 Siege Activations . | . . Robots Corrupted . | . . Combat Hostiles . | . . Parts Fried . | . . Impact Corruptions . | . . Robots Melted . | . . Combat Hostiles . | . . Parts Melted . | . . Heat Transferred 185 | . 185 Parts Sabotaged . | . . Parts Stolen . | . . Parts Stripped . | . . Power Chain Reactions . | . . Missiles Intercepted . | . . Alert | -11 -10 ------- Run | Scr Mat Peak Influence 343 | 25 343 Average Influence 170 | 6 207 Maximum Alert Level 1 | . 1 Low Security (%) 62 | 100 53 Level 1 37 | . 46 Level 2 . | . . Level 3 . | . . Level 4 . | . . Level 5 . | . . High Security . | . . Max Security . | . . Squads Dispatched 4 | . 4 Investigation 3 | . 3 Extermination . | . . Reinforcement 1 | . 1 Assault . | . . Garrison . | . . Intercept . | . . Construction Impeded . | . . Haulers Reinforced . | . . Stealth | -11 -10 --------- Run | Scr Mat Distress Signals 2 | . 2 Communications Jammed . | . . Distress Signals . | . . Times Spotted 18 | 1 17 Peak Tracking Total 7 | 1 7 Tactical Retreats . | . . Traps | -11 -10 ------- Run | Scr Mat Traps Triggered 1 | . 1 Indirectly . | . . Trap Hack Attempts . | . . Triggered . | . . Disarmed . | . . Reprogrammed . | . . Reused . | . . Traps Extracted . | . . Installed . | . . Triggered . | . . Machines | -11 -10 ---------- Run | Scr Mat Machines Disabled 3 | . 3 Max in Single Turn 1 | . 1 Machines Sabotaged . | . . Garrisons Compromised . | . . Overloaded Fab Kills . | . . Fab Network Shutdowns . | . . Hacking | -11 -10 --------- Run | Scr Mat Machines Accessed 4 | . 4 Terminals 2 | . 2 Fabricators . | . . Repair Stations 1 | . 1 Recycling Units 1 | . 1 Scanalyzers . | . . Garrison Access . | . . Total Hacks 22 | . 22 Successful 11 | . 11 Failed 11 | . 11 Catastrophic . | . . Database Lockouts . | . . Manual . | . . Terminals 6 | . 6 Fabricators . | . . Repair Stations 7 | . 7 Recycling Units 9 | . 9 Scanalyzers . | . . Garrison Access . | . . Terminal Hacks 3 | . 3 Record 3 | . 3 Fabricator Hacks . | . . Repair Station Hacks 4 | . 4 Scan Component 2 | . 2 Repair 1 | . 1 Refit 1 | . 1 Recycling Unit Hacks 4 | . 4 Process 1 | . 1 Report Inventory 1 | . 1 Retrieve Matter 1 | . 1 Retrieve Components 1 | . 1 Scanalyzer . | . . Garrison Access Hacks . | . . Unauthorized Hacks . | . . Terminals . | . . Fabricators . | . . Repair Stations . | . . Recycling Units . | . . Scanalyzers . | . . Garrison Access . | . . Data Cores Recovered . | . . Used . | . . Hacking Detections 4 | . 4 Full Trace Events 4 | . 4 Feedback Events . | . . Feedback Blocked . | . . Robot Schematics Acquired . | . . Robots Built . | . . Matter . | . . Time . | . . Total Robot Build Rating . | . . Part Schematics Acquired . | . . Parts Built . | . . Matter . | . . Time . | . . Total Part Build Rating . | . . Parts Repaired 1 | . 1 Time 26 | . 26 Parts Recycled . | . . Recycled Matter 84 | . 84 Retrieved Matter 84 | . 84 Retrieved Components . | . . Parts Scanalyzed . | . . Part Schematics Acquired . | . . Parts Damaged . | . . Bothacking | -11 -10 ------------ Run | Scr Mat Used RIF Installer . | . . Robots Hacked . | . . Non-combat . | . . Combat . | . . Robot Hacks Applied . | . . Relay Couplers Released . | . . Robots Rewired . | . . Allies Hacked . | . . Hacks Repelled . | . . Allies | -11 -10 -------- Run | Scr Mat Total Allies . | . . Largest Group . | . . Highest-Rated Group . | . . Highest-Rated Ally . | . . Total Orders . | . . Ally Attacks . | . . Total Damage . | . . Kills . | . . Allies Corrupted . | . . Allies Melted . | . . Intel | -11 -10 ------- Run | Scr Mat Robot Analysis Total . | . . Derelict Logs Recovered . | . . Drone Launches . | . . Drone Recoveries . | . . Exploration | -11 -10 ------------- Run | Scr Mat Turns Passed 629 | 114 515 Spaces Moved 401 | 80 321 Core 23 | 21 2 Treads . | . . Legs 378 | 59 319 Wheels . | . . Hover . | . . Flight . | . . Fastest Speed 50 | 50 120 Average Speed 116 | 101 120 Slowest Speed 250 | 120 250 Overloaded Moves . | . . Propulsion Burnouts . | . . Robots Hopped . | . . Cave-ins Triggered . | . . Exploration Rate (%) 31 | 7 55 Regions Visited 1 Branch Regions . Pre-discovered Areas . | . . Known Exits Taken . | . . Unknown Exits Taken 1 | 1 . Scrap Searched . | . . Spaces Dug . | . . Terrain Destroyed 80 | . 80 Melee . | . . Projectile 3 | . 3 AOE 77 | . 77 Actions | -11 -10 --------- Run | Scr Mat Total 494 | 98 396 Wait 2 | . 2 Move 400 | 79 321 Hop . | . . Pick Up 22 | 7 15 Fast Attach . | . . Attach 15 | 5 10 Detach 3 | . 3 Swap . | . . Drop 6 | . 6 Fire 46 | 7 39 Melee . | . . Ram . | . . Kick . | . . Crush . | . . Escape Stasis . | . . Rewire . | . . Trap . | . . Miscellaneous . | . . Route ------- -11/Scrapyard -10/Materials (discovered 2 exits: [*Mat] / [*Min]) History --------- Turn | Location | Event 2 | -11/Scrapyard | Met Revision 17 61 | -11/Scrapyard | Discovered new exit (range 8) 115 | -11/Scrapyard | Entered Materials 248 | -10/Materials | Repaired Grenade Launcher 309 | -10/Materials | Build established: Mutant 331 | -10/Materials | Discovered new exit (range 16) 553 | -10/Materials | Discovered new exit (range 12) 572 | -10/Materials | Core integrity fell below 50% 598 | -10/Materials | Core integrity fell below 20% 630 | -10/Materials | Destroyed by G-34 Mercenary with Small Laser Last Messages --------------- can be put in place. 00553_ EXIT=FOUND 00555_ G-34 Mercenary destroyed. 00559_ Grenade Launcher destroyed. 00569_ K-01 Serf cleans the Terminal. 00576_ Aluminum Leg destroyed. 00578_ The unstable cave ceiling collapses. 00578_ K-01 Serf cleans the Terminal. 00580_ Aluminum Leg destroyed. 00584_ K-01 Serf cleans the Terminal. 00589_ K-01 Serf destroyed. 00591_ Med. Laser destroyed. Overweight warning: You are carrying more than your current propulsion can efficiently support, which slows movement; see status page ('s') or the top of the parts list for the specific mass vs. support values. 00592_ Lgt. Ion Engine destroyed. 00598_ Assault Rifle destroyed. 00625_ Mining Laser destroyed. 00628_ Aluminum Leg destroyed. [Achievement: First Step to Greatness] Map ----- +----------------------------------------------------+ | ???????????????????????????? | | ????????????#####??????????? | | ???????????# ????????? | | ??????????? < ????????? | | ??????????? ""???????? | | ?????###### # "T" ?????? | | ?????# ??????? | | ?????# ????????? | | ?????# ?????????? | | ?????# %= ??????????? | | ?????# =#???????????? | | ?????# #???????????? | | ?????# ?????????????? | | ??????? ???????????????? | | ?????#+#*/"????????????????? | | ?????# !%#????????????????? | | ?????# =#????????????????? | | ?????# ##???????????????? | | ?????# T#?????????????### | | ######### ##????????????? | | # = !! # #?????????????"" | | # !!! # #?????????# """ | | # !!! # #?????????# """ | | # # ###???????# | | # # #???????# """ | | # @ g/ #???????# """ | | # g #???????# """ | | # # ####+#### | | # # ## #######+# | | # = # [ | | # # | | ######### | | # ! == # ## ##/###### | | # = # ######## #?? | | # != + + # """ #?? | | # # # " # """ #?? | | # # # """ # """ #?? | | # # # "" # ### | | # # # """ # ## | | # """ # # "" # ##" | | # """ # + """ ########" | | # """ + # """ #??????#" | | # ## ## """ #??????#" | | ########## ## " #??????# | | ?????????# ## [ #??????## | | ?????????# ## ! #???????? | | ?????????# #########???????? | | ?????????# #???????????????? | | ?????????# ????????????????? | | ?????????? ????????????????? | +----------------------------------------------------+ Best States ------------- Heat Dissipation 25 Energy Generation 10 Energy Capacity 125 Matter Stores 300 Matter Capacity 300 Sight Range 16 Terrain Scan Density 10 Evasion (%) 50 Item Schematics ----------------- None Robot Schematics ------------------ None Fabricated ------------ Nothing Alien Tech Used ----------------- None Achievements -------------- First Step to Greatness One Hack Too Far Part-time Mechanic Uninvited Guest Challenges ------------ None Game ------ Seed DefenseWeaponScreen Manual? 0 Play Time 00:39:08 Cumulative 1.2 hours Start 2020.06.04 @ 13:50:35 End 2020.06.04 @ 19:04:23 Sessions 4 Manual Loads 0 Difficulty Rogue Special Mode None Game No. 1 Rogue 1 Adventurer 0 Explorer 0 Win Type - Total 0 Types 0/0/0/0/0/0/0 Lore% 0 Gallery% 0 Achievement% 1 Wizard Run 0 Options --------- ASCII 0 Keyboard 0 Movement Mouse Keybinds 0 Fullscreen 1 Font 18/SmallcapsGlow Map View 76x50 Tactical HUD 1 Map Filters NONE Filters NONE Steam 1 RUN: 888d814f-3db7-4f60-a897-dcad1234fa0a